bitfinex/quotes_SOLUSD_20220117
["timestamp","ask_amount","ask_price","bid_price","bid_amount"]
[1642407754109,10.4748,143.28,143.2,1.97993771]
[1642407754308,39.7098,143.28,143.2,1.97993771]
[1642407754512,39.9598,143.28,143.2,1.97993771]
[1642407755108,10.4763,143.25,143.2,1.97993771]
[1642407755307,40.59386809,143.24,143.16,1.97993771]
[1642407755712,46.84386809,143.24,143.16,1.97993771]
[1642407756411,46.84386809,143.24,143.15,57.70368529]
[1642407756711,6.0,143.24,143.17,1.25240842]
[1642407756910,30.1069,143.26,143.17,1.50240842]
[1642407757111,30.1069,143.26,143.17,11.62240842]
[1642407757311,6.0,143.26,143.17,11.62240842]
[1642407757509,45.65224971,143.26,143.18,41.93551087]
[1642407757716,6.0,143.27,143.19,24.2391]
[1642407757911,6.0,143.27,143.2,10.4718]
[1642407758317,7.81751264,143.29,143.2,10.4718]
[1642407758511,24.4314,143.29,143.19,24.2391]
[1642407758715,38.6664,143.29,143.17,1.97993771]
[1642407759313,10.12,143.28,143.17,1.97993771]
[1642407759614,44.87509386,143.24,143.17,1.97993771]
[1642407759814,44.87509386,143.24,143.16,42.58816309]
[1642407760013,51.12509386,143.24,143.16,42.58816309]
[1642407761015,61.60139386,143.24,143.16,42.58816309]
[1642407761415,61.60139386,143.24,143.15,35.4506]
[1642407761619,61.60139386,143.24,143.15,24.9751]
[1642407762417,61.60139386,143.24,143.15,62.60334789]
[1642407764018,61.60139386,143.24,143.15,24.9751]
[1642407764219,131.36139386,143.24,143.15,24.9751]
[1642407764719,131.36139386,143.24,143.13,10.12]
[1642407765521,24.0663,143.23,143.13,10.12]
[1642407765726,10.4785,143.21,143.13,10.12]
[1642407765928,43.4975643,143.2,143.13,10.12]
[1642407766326,49.7475643,143.2,143.13,10.12]
[1642407766626,60.2267643,143.2,143.1,46.05753771]
[1642407767053,68.5897643,143.2,143.1,35.57853771]
[1642407767453,68.5897643,143.2,143.1,33.5986]
[1642407768660,60.2267643,143.2,143.1,33.5986]
[1642407768857,60.2267643,143.2,143.11,36.67392416]
[1642407769057,16.7292,143.2,143.11,36.67392416]
[1642407769256,16.4792,143.2,143.11,36.92392416]
[1642407769456,6.0,143.2,143.11,48.65215442]
[1642407769656,16.478,143.22,143.11,48.65215442]
[1642407769864,16.478,143.22,143.12,24.2777]
[1642407770256,39.86150544,143.21,143.12,24.5277]
[1642407770557,45.86150544,143.21,143.12,24.5277]
[1642407770760,45.86150544,143.21,143.12,24.2777]
[1642407770965,56.59010544,143.21,143.09,27.73561251]
[1642407771163,56.59010544,143.21,143.06,1.97993771]
[1642407771361,56.59010544,143.21,143.06,12.09993771]
[1642407771362,23.7005,143.2,143.06,12.09993771]
[1642407771559,23.7005,143.2,143.07,24.3926]
[1642407771762,29.9505,143.2,143.07,24.3926]
[1642407771966,10.4824,143.16,143.07,24.3926]
[1642407772160,17.0184,143.16,143.07,24.3926]
[1642407772360,23.2684,143.16,143.07,24.3926]
[1642407772762,41.61177458,143.15,143.06,37.63414415]
[1642407772960,47.86177458,143.15,143.06,37.63414415]
[1642407773362,47.86177458,143.15,143.06,37.88414415]
[1642407773564,47.86177458,143.15,143.06,37.63414415]
[1642407774562,10.484,143.14,143.06,37.63414415]
[1642407774763,16.484,143.14,143.06,37.63414415]
[1642407774963,16.734,143.14,143.06,37.63414415]
[1642407775164,16.734,143.14,143.05,24.4414]
[1642407775465,16.734,143.14,143.05,24.6914]
[1642407775871,16.484,143.14,143.05,24.6914]
[1642407776069,6.0,143.14,143.07,48.76331297]
[1642407776575,47.61177458,143.15,143.07,49.01331297]
[1642407777266,47.61177458,143.15,143.07,59.24451297]
[1642407777267,47.86177458,143.15,143.07,59.24451297]
[1642407777666,47.86177458,143.15,143.07,60.49740765]
[1642407777867,47.86177458,143.15,143.07,59.24451297]
[1642407778471,6.25,143.15,143.07,59.24451297]
[1642407778771,6.25,143.15,143.07,60.49740765]
[1642407778966,0.25,143.15,143.07,60.49740765]
[1642407779170,16.7323,143.16,143.07,60.49740765]
[1642407779368,16.4823,143.16,143.07,60.49740765]
[1642407779569,42.22934276,143.15,143.07,60.49740765]
[1642407779968,48.22934276,143.15,143.07,60.49740765]
[1642407780772,6.0,143.15,143.07,60.49740765]
[1642407780971,0.25,143.15,143.07,60.49740765]
[1642407781169,6.0,143.16,143.07,60.74740765]
[1642407781377,40.8361,143.18,143.07,60.74740765]
[1642407781570,40.8361,143.18,143.08,23.0773]
[1642407781771,37.97061421,143.17,143.1,45.54934245]
[1642407781970,43.97061421,143.17,143.1,45.79934245]
[1642407782370,6.0,143.17,143.1,45.79934245]
[1642407782769,30.3555,143.18,143.1,45.79934245]
[1642407782970,30.3555,143.18,143.1,45.54934245]
[1642407783171,30.3555,143.18,143.1,69.26784245]
[1642407783372,24.3555,143.18,143.1,69.51784245]
[1642407783573,42.80332839,143.17,143.1,69.26784245]
[1642407784377,24.3555,143.18,143.1,69.26784245]
[1642407784573,30.6055,143.18,143.1,69.26784245]
[1642407785073,30.6055,143.18,143.1,79.99694245]
[1642407788384,30.6055,143.18,143.1,79.74694245]
[1642407788983,71.23964199,143.18,143.1,79.74694245]
[1642407789980,81.72044199,143.18,143.1,23.7185]
[1642407790179,90.39644199,143.18,143.1,23.7185]
[1642407790682,160.15644199,143.18,143.1,23.7185]
[1642407790879,90.39644199,143.18,143.11,42.82125469]
[1642407791280,81.72044199,143.18,143.11,42.82125469]
[1642407791883,41.0863,143.18,143.11,42.82125469]
[1642407793984,41.0863,143.18,143.11,43.07125469]
[1642407798784,41.0863,143.18,143.1,23.7185]
[1642407799186,46.7203,143.18,143.1,23.7185]
[1642407799393,46.7203,143.18,143.08,1.97993771]
[1642407799784,46.7203,143.18,143.08,49.10121937]
[1642407800083,46.7203,143.18,143.08,49.35121937]
[1642407800284,41.0863,143.18,143.08,47.37128166]
[1642407800484,110.8463,143.18,143.08,47.37128166]
[1642407800883,110.8463,143.18,143.09,23.5853]
[1642407801285,110.8463,143.18,143.09,23.8353]
[1642407801485,41.0863,143.18,143.09,23.8353]
[1642407804289,40.8363,143.18,143.09,23.5853]
[1642407805191,40.8363,143.18,143.08,1.97993771]
[1642407805390,50.9563,143.18,143.08,1.97993771]
[1642407805591,69.76,143.17,143.07,1.97993771]
[1642407805791,10.4831,143.15,143.07,1.97993771]
[1642407805994,10.4831,143.15,143.07,2.22993771]
[1642407806192,16.7331,143.15,143.07,2.22993771]
[1642407806393,37.63272447,143.14,143.07,46.47907766]
[1642407806797,43.88272447,143.14,143.07,46.47907766]
[1642407806994,43.63272447,143.14,143.07,46.47907766]
[1642407808196,6.0,143.14,143.07,46.47907766]
[1642407808395,16.4815,143.17,143.07,56.96037766]
[1642407808596,16.4815,143.17,143.08,24.445]
[1642407808995,16.4815,143.17,143.08,24.695]
[1642407809196,62.54736599,143.17,143.08,24.695]
[1642407809499,62.54736599,143.17,143.08,35.1755]
[1642407809795,51.81586599,143.17,143.08,35.1755]
[1642407810300,6.0,143.17,143.08,35.1755]
[1642407810600,6.0,143.17,143.08,45.2955]
[1642407810800,30.3555,143.18,143.08,47.27543771]
[1642407811299,77.71896184,143.18,143.08,47.27543771]
[1642407811600,77.96896184,143.18,143.09,1.97993771]
[1642407811802,77.96896184,143.18,143.1,36.83597523]
[1642407812006,77.96896184,143.18,143.11,24.9623]
[1642407812203,88.44966184,143.18,143.11,24.9623]
[1642407815837,88.44966184,143.18,143.09,1.97993771]
[1642407816032,88.44966184,143.18,143.08,1.97993771]
[1642407816033,97.40443772,143.18,143.08,1.97993771]
[1642407816232,95.70366184,143.18,143.08,1.97993771]
[1642407816431,69.76,143.17,143.08,1.97993771]
[1642407816632,80.2417,143.17,143.08,1.97993771]
[1642407816833,86.4917,143.17,143.08,39.77391411]
[1642407817033,86.4917,143.17,143.07,1.97993771]
[1642407817533,16.7317,143.17,143.07,1.97993771]
[1642407817732,16.7317,143.17,143.07,2.22993771]
[1642407818133,16.7317,143.17,143.08,40.93160798]
[1642407818634,16.7317,143.17,143.09,23.6129]
[1642407818834,16.7317,143.17,143.09,23.8629]
[1642407821838,16.7317,143.17,143.08,1.97993771]
[1642407822039,69.76,143.16,143.08,1.97993771]
[1642407822241,10.4831,143.15,143.08,1.97993771]
[1642407822443,16.7331,143.15,143.08,1.97993771]
[1642407822839,38.6104423,143.14,143.08,1.97993771]
[1642407823041,61.2388423,143.14,143.07,1.97993771]
[1642407823242,67.4888423,143.14,143.07,1.97993771]
[1642407823441,74.2538423,143.14,143.07,1.97993771]
[1642407824645,75.53940363,143.14,143.07,1.97993771]
[1642407824846,86.02310363,143.14,143.07,1.97993771]
[1642407825243,86.02310363,143.14,143.06,24.94853771]
[1642407826243,86.02310363,143.14,143.06,1.97993771]
[1642407826878,85.77310363,143.14,143.06,1.97993771]
[1642407827045,79.00810363,143.14,143.04,1.97993771]
[1642407827245,79.00810363,143.14,143.04,71.85442468]
[1642407828046,79.00810363,143.14,143.04,82.33802468]
[1642407828246,79.25810363,143.14,143.05,1.97993771]
[1642407828460,79.25810363,143.14,143.05,2.22993771]
[1642407828846,73.25810363,143.14,143.05,2.22993771]
[1642407829648,34.64766133,143.14,143.05,2.22993771]
[1642407829849,24.16396133,143.14,143.05,12.71273771]
[1642407830247,24.16396133,143.14,143.06,24.1511]
[1642407830447,24.16396133,143.14,143.06,24.4011]
[1642407830665,24.16396133,143.14,143.07,37.03353258]
[1642407830848,1.53556133,143.14,143.07,37.28353258]
[1642407831253,1.53556133,143.14,143.07,47.76483258]
[1642407831451,1.28556133,143.14,143.08,22.5946]
[1642407831852,1.28556133,143.14,143.08,22.8446]
[1642407832457,1.28556133,143.14,143.08,22.5946]
[1642407832653,7.28556133,143.14,143.08,33.0751]
[1642407832851,1.28556133,143.14,143.08,33.0751]
[1642407833051,7.53556133,143.14,143.08,22.5946]
[1642407836354,1.53556133,143.14,143.08,22.5946]
[1642407836757,1.53556133,143.14,143.07,37.03353258]
[1642407836955,7.53556133,143.14,143.07,37.03353258]
[1642407837155,1.53556133,143.14,143.07,37.03353258]
[1642407837356,7.53556133,143.14,143.07,37.03353258]
[1642407837555,31.34236133,143.14,143.07,37.03353258]
[1642407838656,7.53556133,143.14,143.07,37.03353258]
[1642407840261,7.28556133,143.14,143.07,37.28353258]
[1642407840664,1.28556133,143.14,143.07,47.40353258]
[1642407841164,1.28556133,143.14,143.08,23.4852]
[1642407841363,7.28556133,143.14,143.08,23.7352]
[1642407841564,1.28556133,143.14,143.08,23.7352]
[1642407841768,7.28556133,143.14,143.08,23.7352]
[1642407843089,1.28556133,143.14,143.08,23.7352]
[1642407843990,1.28556133,143.14,143.08,33.8552]
[1642407845692,7.28556133,143.14,143.08,33.8552]
[1642407845896,1.28556133,143.14,143.08,33.8552]
[1642407846494,7.28556133,143.14,143.08,44.3358]
[1642407846696,1.28556133,143.14,143.08,44.3358]
[1642407847494,7.28556133,143.14,143.08,44.3358]
[1642407849099,50.85047479,143.14,143.08,44.3358]
[1642407849497,7.28556133,143.14,143.08,33.8552]
[1642407849697,7.28556133,143.14,143.08,33.6052]
[1642407850000,7.28556133,143.14,143.08,33.8552]
[1642407851603,6.0,143.14,143.08,33.8552]
[1642407852103,6.0,143.18,143.08,39.9012]
[1642407852504,44.37018497,143.18,143.08,39.9012]
[1642407852705,50.37018497,143.18,143.08,39.9012]
[1642407852905,50.37018497,143.18,143.08,41.88113771]
[1642407853105,50.62018497,143.18,143.08,41.88113771]
[1642407853307,50.62018497,143.18,143.08,35.83513771]
[1642407853504,50.62018497,143.18,143.08,46.31563771]
[1642407854006,50.62018497,143.18,143.09,1.97993771]
[1642407854305,50.62018497,143.18,143.1,36.56536827]
[1642407854507,50.37018497,143.18,143.1,36.56536827]
[1642407854705,6.0,143.18,143.1,36.81536827]
[1642407854905,29.3527,143.2,143.1,46.93536827]
[1642407855206,29.3527,143.2,143.11,24.8943]
[1642407855406,29.3527,143.2,143.11,35.2643]
[1642407856409,29.3527,143.2,143.12,10.4778]
[1642407856609,29.6027,143.2,143.12,10.4778]
[1642407856807,47.77967918,143.19,143.12,10.4778]
[1642407857007,47.77967918,143.19,143.13,43.42477488]
[1642407857207,6.0,143.19,143.13,43.42477488]
[1642407857807,0.25,143.19,143.12,10.4778]
[1642407858207,0.25,143.19,143.13,23.9059]
[1642407858809,69.12293339,143.2,143.14,35.57989384]
[1642407859011,69.37293339,143.2,143.14,35.57989384]
[1642407859814,46.02023339,143.2,143.14,35.57989384]
[1642407861143,6.25,143.2,143.14,35.57989384]
[1642407861341,0.25,143.2,143.14,35.57989384]
[1642407861541,6.25,143.2,143.15,23.7553]
[1642407861741,6.0,143.2,143.15,23.7553]
[1642407861942,1.81751264,143.23,143.15,23.7553]
[1642407862143,1.81751264,143.23,143.15,24.0053]
[1642407863342,1.81751264,143.23,143.16,10.12]
[1642407863542,1.81751264,143.25,143.16,10.12]
[1642407863748,1.81751264,143.25,143.17,23.9252]
[1642407863942,7.81751264,143.25,143.18,10.12]
[1642407864141,1.81751264,143.25,143.18,55.84355499]
[1642407864342,7.81751264,143.25,143.18,56.09355499]
[1642407864541,7.81751264,143.25,143.18,66.56595499]
[1642407864743,6.0,143.25,143.18,66.56595499]
[1642407864945,7.40360274,143.27,143.18,66.56595499]
[1642407865143,1.40360274,143.27,143.19,22.7889]
[1642407865442,7.40360274,143.27,143.19,23.0389]
[1642407866446,7.40360274,143.27,143.19,33.5115]
[1642407867747,77.16360274,143.27,143.19,22.7889]
[1642407867947,77.41360274,143.27,143.14,34.3479]
[1642407868144,77.41360274,143.27,143.15,24.9603]
[1642407868345,77.41360274,143.27,143.15,25.2103]
[1642407868750,43.51945947,143.25,143.16,52.65091565]
[1642407868948,49.76945947,143.25,143.16,52.65091565]
[1642407870146,49.76945947,143.25,143.16,42.17621565]
[1642407870147,60.24505947,143.25,143.16,42.17621565]
[1642407870346,70.36505947,143.25,143.14,34.704]
[1642407870547,23.425,143.24,143.14,24.2279]
[1642407870845,29.675,143.24,143.14,24.2279]
[1642407871245,29.675,143.24,143.15,44.72321516]
[1642407872448,10.4774,143.23,143.15,44.72321516]
[1642407872647,42.45444467,143.22,143.15,44.72321516]
[1642407872848,42.70444467,143.22,143.15,44.72321516]
[1642407873046,6.25,143.22,143.15,44.72321516]
[1642407873247,6.25,143.22,143.15,44.97321516]
[1642407873446,6.0,143.22,143.15,44.97321516]
[1642407873646,0.25,143.22,143.15,44.97321516]
[1642407873846,16.7274,143.23,143.15,44.97321516]
[1642407874049,45.69896255,143.22,143.15,44.97321516]
[1642407874248,45.94896255,143.22,143.11,56.8808]
[1642407874448,24.1677,143.21,143.13,10.4768]
[1642407874848,30.4177,143.21,143.13,10.4768]
[1642407875249,30.4177,143.21,143.14,37.3908855]
[1642407876250,30.1677,143.21,143.14,37.6408855]
[1642407876753,30.1677,143.21,143.14,37.3908855]
[1642407876951,30.4177,143.21,143.14,37.3908855]
[1642407879554,6.25,143.21,143.14,37.3908855]
[1642407880553,0.25,143.21,143.14,37.3908855]
[1642407880756,51.94896255,143.22,143.14,37.6408855]
[1642407881153,51.94896255,143.22,143.14,48.1169855]
[1642407881355,51.94896255,143.22,143.14,47.8669855]
[1642407881554,51.94896255,143.22,143.14,48.1169855]
[1642407882559,51.94896255,143.22,143.14,37.3908855]
[1642407883158,75.54416255,143.22,143.14,37.3908855]
[1642407883758,86.02206255,143.22,143.14,37.3908855]
[1642407884659,87.83957519,143.22,143.14,37.3908855]
[1642407885658,87.83957519,143.22,143.12,10.4775]
[1642407886466,87.83957519,143.22,143.12,10.7275]
[1642407886893,87.83957519,143.22,143.13,35.81077568]
[1642407890167,87.83957519,143.22,143.12,10.4775]
[1642407890367,87.83957519,143.22,143.11,46.7608]
[1642407890368,96.25557519,143.22,143.11,46.7608]
[1642407891265,96.25557519,143.22,143.11,40.64506693]
[1642407891567,37.92987767,143.19,143.11,40.64506693]
[1642407891768,56.50097767,143.19,143.11,40.64506693]
[1642407891967,62.75097767,143.19,143.11,40.64506693]
[1642407893371,62.75097767,143.19,143.08,45.1655]
[1642407893671,62.75097767,143.19,143.08,45.4155]
[1642407894269,23.8983,143.18,143.08,45.4155]
[1642407894501,40.6292,143.18,143.09,42.00231613]
[1642407895901,40.6292,143.18,143.09,42.25231613]
[1642407896104,40.6292,143.18,143.1,23.3923]
[1642407896503,6.25,143.18,143.1,23.3923]
[1642407896704,6.0,143.18,143.1,23.6423]
[1642407896903,7.81751264,143.19,143.1,23.6423]
[1642407897203,1.81751264,143.19,143.1,23.6423]
[1642407897403,7.81751264,143.19,143.1,23.6423]
[1642407897603,6.0,143.19,143.1,23.6423]
[1642407898003,31.89341264,143.21,143.1,23.6423]
[1642407898407,31.89341264,143.21,143.1,34.1215]
[1642407899007,1.81751264,143.2,143.1,103.8815]
[1642407899407,7.81751264,143.2,143.1,103.8815]
[1642407900211,6.0,143.2,143.1,105.86143771]
[1642407900410,7.81751264,143.21,143.1,105.86143771]
[1642407900609,1.81751264,143.21,143.13,10.4766]
[1642407900809,7.81751264,143.21,143.13,35.0936]
[1642407901009,6.0,143.21,143.13,35.3436]
[1642407901411,78.86402599,143.22,143.13,35.3436]
[1642407901611,79.11402599,143.22,143.13,35.3436]
[1642407902010,79.11402599,143.22,143.13,24.867]
[1642407902615,89.59182599,143.22,143.13,24.867]
[1642407903714,1.81751264,143.21,143.13,24.867]
[1642407903914,8.06751264,143.21,143.13,24.617]
[1642407904115,18.54611264,143.21,143.13,24.867]
[1642407904515,18.54611264,143.21,143.11,10.4781]
[1642407904714,18.54611264,143.21,143.1,1.97993771]
[1642407904916,24.8645,143.2,143.1,26.80233771]
[1642407905318,31.1145,143.2,143.1,26.80233771]
[1642407905520,48.01409079,143.19,143.1,26.55233771]
[1642407905719,49.83160343,143.19,143.1,24.8224]
[1642407905917,56.08160343,143.19,143.1,24.8224]
[1642407906521,56.08160343,143.19,143.1,35.3015]
[1642407906723,45.60190343,143.19,143.1,35.3015]
[1642407906923,8.06751264,143.19,143.1,35.3015]
[1642407907125,7.81751264,143.19,143.1,35.3015]
[1642407907523,7.81751264,143.19,143.11,1.2525298]
[1642407907725,7.81751264,143.19,143.13,10.4771]
[1642407907924,7.81751264,143.19,143.13,10.7271]
[1642407908327,6.0,143.19,143.13,10.7271]
[1642407908726,7.81751264,143.21,143.13,10.7271]
[1642407908925,7.81751264,143.21,143.13,33.3337]
[1642407909325,6.0,143.21,143.13,33.3337]
[1642407909929,7.81751264,143.22,143.13,33.3337]
[1642407910127,1.81751264,143.22,143.13,33.3337]
[1642407910326,7.81751264,143.22,143.13,33.3337]
[1642407910929,8.06751264,143.22,143.13,33.3337]
[1642407911225,18.54531264,143.22,143.13,33.3337]
[1642407911827,18.54531264,143.22,143.13,22.6066]
[1642407912427,18.54531264,143.22,143.13,22.8566]
[1642407913028,1.81751264,143.21,143.13,22.8566]
[1642407913456,7.81751264,143.21,143.13,22.8566]
[1642407914756,7.81751264,143.21,143.13,93.87376686]
[1642407914957,1.81751264,143.22,143.13,93.87376686]
[1642407915358,1.81751264,143.22,143.13,93.66276686]
[1642407915967,26.68921264,143.24,143.13,93.66276686]
[1642407916360,32.68921264,143.24,143.13,104.13966686]
[1642407916660,7.81751264,143.24,143.13,104.13966686]
[1642407917063,7.81751264,143.24,143.14,10.12]
[1642407917264,6.0,143.24,143.15,43.21184109]
[1642407917466,7.81751264,143.25,143.17,10.4738]
[1642407917763,7.81751264,143.25,143.18,48.73462212]
[1642407917964,7.81751264,143.25,143.18,59.10462212]
[1642407918864,6.0,143.25,143.18,59.10462212]
[1642407919266,7.40360274,143.27,143.18,59.10462212]
[1642407919467,1.40360274,143.27,143.19,10.4723]
[1642407919671,7.40360274,143.27,143.19,10.4723]
[1642407919870,7.40360274,143.27,143.19,10.7223]
[1642407922071,7.40360274,143.27,143.19,10.4723]
[1642407922671,7.40360274,143.27,143.18,58.85462212]
[1642407922874,7.65360274,143.27,143.18,58.85462212]
[1642407923673,9.47111538,143.27,143.18,58.85462212]
[1642407924274,9.47111538,143.27,143.18,59.10462212]
[1642407924476,19.94541538,143.27,143.18,59.10462212]
[1642407925274,19.94541538,143.27,143.18,48.98462212]
[1642407927775,19.94541538,143.27,143.18,48.73462212]
[1642407928187,19.69541538,143.27,143.18,48.73462212]
[1642407928981,19.69541538,143.27,143.18,48.98462212]
[1642407929477,19.69541538,143.27,143.18,59.45782212]
[1642407929676,9.22111538,143.27,143.18,59.45782212]
[1642407930478,7.40360274,143.27,143.18,59.45782212]
[1642407934885,6.0,143.27,143.18,65.16582212]
[1642407935084,7.81751264,143.27,143.18,65.16582212]
[1642407935283,7.81751264,143.27,143.19,23.6097]
[1642407935484,7.81751264,143.27,143.2,10.4716]
[1642407935884,6.0,143.27,143.2,10.7216]
[1642407936284,1.81751264,143.28,143.2,10.7216]
[1642407936484,1.81751264,143.28,143.23,10.4696]
[1642407936886,1.81751264,143.28,143.24,46.2616252]
[1642407937385,1.81751264,143.3,143.24,46.5116252]
[1642407937783,7.81751264,143.3,143.24,46.5116252]
[1642407938185,1.81751264,143.3,143.24,46.5116252]
[1642407938385,6.0,143.3,143.24,56.9805252]
[1642407939086,7.81751264,143.31,143.24,56.9805252]
[1642407939288,2.06751264,143.31,143.24,56.9805252]
[1642407939485,8.06751264,143.31,143.24,56.9805252]
[1642407944689,1.81751264,143.3,143.24,56.9805252]
[1642407944890,7.81751264,143.3,143.24,56.9805252]
[1642407950702,1.81751264,143.3,143.24,56.9805252]
[1642407952300,1.81751264,143.3,143.24,65.3655252]
[1642407952699,1.81751264,143.3,143.24,88.2940252]
[1642407953103,1.81751264,143.33,143.24,88.2940252]
[1642407953302,1.81751264,143.33,143.25,10.12]
[1642407953505,7.81751264,143.33,143.26,24.755]
[1642407953705,1.81751264,143.33,143.28,10.4661]
[1642407953906,1.81751264,143.33,143.28,10.7161]
[1642407954307,1.81751264,143.34,143.28,10.7161]
[1642407954527,1.81751264,143.34,143.29,42.08333989]
[1642407954733,8.06751264,143.34,143.29,42.08333989]
[1642407956532,7.81751264,143.34,143.29,42.08333989]
[1642407957435,1.81751264,143.33,143.26,35.2223]
[1642407957932,8.06751264,143.33,143.26,35.2223]
[1642407958333,37.6547908,143.32,143.26,24.755]
[1642407958635,37.6547908,143.32,143.24,10.4686]
[1642407958833,43.9047908,143.32,143.24,10.4686]
[1642407959033,43.9047908,143.32,143.22,10.12]
[1642407959333,43.9047908,143.32,143.22,10.37]
[1642407959536,6.25,143.32,143.22,10.12]
[1642407959733,1.81751264,143.31,143.22,10.12]
[1642407959939,30.92011264,143.31,143.22,10.12]
[1642407960533,30.92011264,143.31,143.23,35.79931084]
[1642407960733,31.17011264,143.31,143.23,35.79931084]
[1642407960935,31.17011264,143.31,143.23,36.04931084]
[1642407962438,31.17011264,143.31,143.23,46.51861084]
[1642407963343,30.92011264,143.31,143.23,69.81331084]
[1642407965044,7.81751264,143.31,143.23,69.81331084]
[1642407965443,1.81751264,143.31,143.23,69.81331084]
[1642407965846,7.81751264,143.31,143.23,69.81331084]
[1642407966045,1.81751264,143.31,143.23,69.81331084]
[1642407966245,7.81751264,143.31,143.23,69.81331084]
[1642407968145,53.86201563,143.31,143.23,69.81331084]
[1642407968345,54.11201563,143.31,143.23,69.81331084]
[1642407968546,8.06751264,143.31,143.23,69.81331084]
[1642407969349,1.81751264,143.3,143.23,69.81331084]
[1642407969748,7.81751264,143.3,143.23,69.81331084]
[1642407970351,1.81751264,143.29,143.23,69.81331084]
[1642407970748,7.81751264,143.29,143.23,69.81331084]
[1642407971448,6.0,143.29,143.23,69.81331084]
[1642407971849,42.60917683,143.3,143.23,69.81331084]
[1642407972049,7.81751264,143.3,143.23,69.81331084]
[1642407974684,6.0,143.3,143.23,69.81331084]
[1642407974885,7.81751264,143.31,143.23,69.81331084]
[1642407975086,2.06751264,143.31,143.23,139.57331084]
[1642407975286,8.06751264,143.31,143.23,139.57331084]
[1642407975489,1.81751264,143.3,143.23,139.57331084]
[1642407975887,7.81751264,143.3,143.23,139.57331084]
[1642407977786,6.0,143.3,143.23,139.57331084]
[1642407978189,7.81751264,143.31,143.23,139.57331084]
[1642407979687,7.81751264,143.31,143.23,149.69331084]
[1642407986800,1.81751264,143.3,143.23,149.69331084]
[1642407987200,7.81751264,143.3,143.23,149.69331084]
[1642407991708,40.68555794,143.29,143.23,44.134]
[1642407991901,46.68555794,143.29,143.23,44.134]
[1642407992102,46.93555794,143.29,143.21,10.4708]
[1642407992303,46.93555794,143.29,143.21,34.586]
[1642407992502,48.75307058,143.29,143.21,34.586]
[1642407992702,48.75307058,143.29,143.22,35.0918128]
[1642407992902,48.50307058,143.29,143.22,35.0918128]
[1642407993301,48.50307058,143.29,143.22,35.3418128]
[1642407993704,1.81751264,143.28,143.22,35.3418128]
[1642407993907,7.81751264,143.28,143.22,35.3418128]
[1642407994506,7.81751264,143.28,143.22,35.0918128]
[1642407995607,8.06751264,143.28,143.21,34.586]
[1642407995805,32.87301264,143.28,143.21,34.836]
[1642407996007,32.62301264,143.28,143.21,34.836]
[1642407996414,32.87301264,143.28,143.21,34.836]
[1642407996607,32.87301264,143.28,143.21,10.7208]
[1642407997006,32.87301264,143.28,143.21,34.2742]
[1642407997409,32.62301264,143.28,143.21,34.2742]
[1642407999639,30.8055,143.28,143.21,34.2742]
[1642408000241,32.62301264,143.28,143.21,34.2742]
[1642408005947,32.87301264,143.28,143.21,34.2742]
[1642408009454,32.62301264,143.28,143.21,34.2742]
[1642408010453,30.8055,143.28,143.21,34.2742]
[1642408012959,30.8055,143.28,143.21,104.0342]
[1642408014762,6.0,143.28,143.21,104.0342]
[1642408014960,7.81751264,143.3,143.21,104.0342]
[1642408015161,23.3932,143.29,143.21,104.0342]
[1642408015361,29.3932,143.29,143.21,104.0342]
[1642408015761,23.3932,143.29,143.21,104.0342]
[1642408015964,1.81751264,143.3,143.21,104.0342]
[1642408016461,1.81751264,143.3,143.22,10.12]
[1642408016663,1.81751264,143.3,143.24,10.4677]
[1642408016862,1.81751264,143.3,143.25,35.80784797]
[1642408017261,1.81751264,143.3,143.25,105.56784797]
[1642408017462,1.81751264,143.3,143.25,35.80784797]
[1642408018264,1.81751264,143.32,143.25,35.80784797]
[1642408018566,1.81751264,143.32,143.26,10.4675]
[1642408026573,1.81751264,143.32,143.26,34.9895]
[1642408027376,24.7878,143.33,143.26,34.9895]
[1642408027574,24.7878,143.33,143.26,104.7495]
[1642408029574,26.60531264,143.33,143.26,104.7495]
[1642408030175,26.60531264,143.33,143.26,99.7495]
[1642408030575,26.60531264,143.33,143.26,94.2495]
[1642408031179,26.60531264,143.33,143.26,92.7495]
[1642408031380,24.7878,143.33,143.26,103.217]
[1642408033704,26.60531264,143.33,143.26,103.217]
[1642408035104,19.10531264,143.33,143.26,103.217]
[1642408035505,19.10531264,143.33,143.26,111.243]
[1642408035713,19.10531264,143.33,143.26,121.363]